fUSD/lending_fUSD_20260108
["ID","MTS","AMOUNT","RATE_DAILY","PERIOD"]
[400965502,1767874249943,-378.53,0.00013542,2]
[400965503,1767874249953,-41810.92698667,0.00013616,2]
[400965504,1767874249961,-25696.0985385,0.00013622,2]
[400965505,1767874249971,-37192.72276352,0.00013632,2]
[400965506,1767874249979,-736.0,0.00013653,2]
[400965507,1767874249989,-151.0,0.00013695,2]
[400965509,1767874249998,-500.0,0.00013698,2]
[400965511,1767874250007,-500.0,0.00013698,2]
[400965513,1767874250017,-500.0,0.00013698,2]
[400965515,1767874250027,-500.0,0.00013698,2]
[400965517,1767874250036,-330.37464563,0.00013698,2]
[400965519,1767874250045,-539.56119265,0.00013698,2]
[400965521,1767874250054,-327.36851874,0.00013698,2]
[400965523,1767874250063,-397.40808875,0.00013698,2]
[400965525,1767874250072,-500.0,0.00013698,2]
[400965527,1767874250082,-500.0,0.00013698,2]
[400965529,1767874250091,-500.0,0.00013698,2]
[400965531,1767874250100,-622.57091342,0.00013698,2]
[400965533,1767874250109,-500.0,0.00013698,2]
[400965535,1767874250118,-500.0,0.00013698,2]
[400965537,1767874250128,-500.0,0.00013698,2]
[400965539,1767874250139,-500.0,0.00013698,2]
[400965541,1767874250151,-500.0,0.00013698,2]
[400965544,1767874250161,-500.0,0.00013698,2]
[400965546,1767874250171,-500.0,0.00013698,2]
[400965548,1767874250180,-500.0,0.00013698,2]
[400965550,1767874250190,-816.3,0.00013698,2]
[400965552,1767874250199,-816.3,0.00013698,2]
[400965554,1767874250209,-816.3,0.00013698,2]
[400965556,1767874250219,-816.3,0.00013698,2]
[400965558,1767874250229,-816.3,0.00013698,2]
[400965560,1767874250238,-816.3,0.00013698,2]
[400965562,1767874250247,-816.3,0.00013698,2]
[400965564,1767874250256,-816.3,0.00013698,2]
[400965566,1767874250265,-816.3,0.00013698,2]
[400965568,1767874250274,-816.3,0.00013698,2]
[400965570,1767874250284,-816.3,0.00013698,2]
[400965572,1767874250294,-816.3,0.00013698,2]
[400965574,1767874250303,-500.0,0.00013698,2]
[400965576,1767874250312,-500.0,0.00013698,2]
[400965578,1767874250322,-500.0,0.00013698,2]
[400965580,1767874250331,-500.0,0.00013698,2]
[400965582,1767874250340,-525.57552704,0.00013698,2]
[400965584,1767874250349,-500.0,0.00013698,2]
[400965586,1767874250358,-500.0,0.00013698,2]
[400965588,1767874250368,-500.0,0.00013698,2]
[400965590,1767874250377,-500.0,0.00013698,2]
[400965592,1767874250387,-500.0,0.00013698,2]
[400965594,1767874250395,-500.0,0.00013698,2]
[400965596,1767874250406,-500.0,0.00013698,2]
[400965598,1767874250415,-195.61440438,0.00013698,2]
[400965600,1767874250425,-500.0,0.00013698,2]
[400965602,1767874250434,-500.0,0.00013698,2]
[400965604,1767874250443,-500.0,0.00013698,2]
[400965606,1767874250453,-500.0,0.00013698,2]
[400965608,1767874250462,-512.38385976,0.00013698,2]
[400965610,1767874250472,-517.79961316,0.00013698,2]
[400965612,1767874250481,-500.0,0.00013698,2]
[400965614,1767874250490,-500.0,0.00013698,2]
[400965616,1767874250499,-435.97578005,0.00013698,2]
[400965618,1767874250508,-500.0,0.00013698,2]
[400965620,1767874250517,-500.0,0.00013698,2]
[400965622,1767874250527,-500.0,0.00013698,2]
[400965624,1767874250536,-500.0,0.00013698,2]
[400965626,1767874250545,-500.0,0.00013698,2]
[400965628,1767874250555,-500.0,0.00013698,2]
[400965630,1767874250565,-500.0,0.00013698,2]
[400965632,1767874250574,-500.0,0.00013698,2]
[400965634,1767874250583,-500.0,0.00013698,2]
[400965636,1767874250592,-500.0,0.00013698,2]
[400965638,1767874250601,-500.0,0.00013698,2]
[400965640,1767874250611,-500.0,0.00013698,2]
[400965642,1767874250619,-500.0,0.00013698,2]
[400965644,1767874250629,-500.0,0.00013698,2]
[400965646,1767874250638,-363.73176274,0.00013698,2]
[400965648,1767874250648,-500.0,0.00013698,2]
[400965650,1767874250658,-500.0,0.00013698,2]
[400965652,1767874250667,-500.0,0.00013698,2]
[400965654,1767874250676,-500.0,0.00013698,2]
[400965656,1767874250685,-500.0,0.00013698,2]
[400965658,1767874250694,-500.0,0.00013698,2]
[400965660,1767874250703,-500.0,0.00013698,2]
[400965662,1767874250712,-500.0,0.00013698,2]
[400965664,1767874250721,-500.0,0.00013698,2]
[400965666,1767874250731,-500.0,0.00013698,2]
[400965668,1767874250740,-500.0,0.00013698,2]
[400965670,1767874250749,-483.79003433,0.00013698,2]
[400965673,1767874250759,-500.0,0.00013698,2]
[400965675,1767874250768,-515.32073646,0.00013698,2]
[400965677,1767874250778,-500.0,0.00013698,2]
[400965679,1767874250787,-500.0,0.00013698,2]
[400965681,1767874250797,-500.0,0.00013698,2]
[400965682,1767874250806,-500.0,0.00013698,2]
[400965684,1767874250816,-500.0,0.00013698,2]
[400965686,1767874250825,-500.0,0.00013698,2]
[400965688,1767874250834,-500.0,0.00013698,2]
[400965716,1767874251086,-500.0,0.00013698,2]
[400965718,1767874251097,-500.0,0.00013698,2]
[400965720,1767874251106,-500.0,0.00013698,2]
[400965723,1767874251116,-500.0,0.00013698,2]
[400965725,1767874251125,-500.0,0.00013698,2]
[400965727,1767874251135,-500.0,0.00013698,2]
[400965728,1767874251145,-500.0,0.00013698,2]
[400965731,1767874251155,-500.0,0.00013698,2]
[400965733,1767874251164,-500.0,0.00013698,2]
[400965735,1767874251174,-500.0,0.00013698,2]
[400965737,1767874251184,-502.25127096,0.00013698,2]
[400965739,1767874251193,-500.0,0.00013698,2]
[400965741,1767874251202,-200.0,0.00013699,2]
[400965743,1767874251212,-151.0,0.00013699,2]
[400965745,1767874251222,-151.0,0.00013699,2]
[400965747,1767874251231,-151.0,0.00013699,2]
[400965749,1767874251240,-157.708273,0.00013699,2]
[400965750,1767874251249,-567.47,0.00013699,2]
[400965752,1767874251259,-3894.32,0.00013699,2]
[400965755,1767874251268,-187.7,0.00013709,2]
[400965757,1767874251278,-823.0,0.00013712,2]
[400965759,1767874251287,-569.78,0.00013725,2]
[400965761,1767874251298,-1112.16,0.00013725,2]
[400965763,1767874251307,-556.08,0.00013725,2]
[400965765,1767874251316,-348.61,0.00013725,2]
[400965767,1767874251326,-3292.0,0.00013725,2]
[400965769,1767874251335,-1000.0,0.000138,2]
[400965771,1767874251345,-713.97283296,0.00013904,2]
[400965773,1767874251354,-564.28,0.00013919,2]
[400965775,1767874251363,-1100.0,0.00014009,2]
[400965777,1767874251372,-482.72,0.00014033,2]
[400965779,1767874251381,-546.87,0.00014033,2]
[400965781,1767874251391,-482.63,0.00014033,2]
[400965783,1767874251400,-482.63,0.00014033,2]
[400965785,1767874251408,-16279.0,0.00014066,2]
[400965787,1767874251417,-1000.0,0.000141,2]
[400965789,1767874251427,-634.76848219,0.00014107,2]
[400965791,1767874251437,-500.0,0.0001418,2]
[400965793,1767874251446,-1163.0,0.00014239,2]
[400965795,1767874251455,-1163.0,0.00014259,2]
[400965797,1767874251465,-161.48,0.00014291,2]
[400965799,1767874251474,-58194.9227012,0.00014295,2]
[400965801,1767874251483,-567.47,0.00014384,2]
[400965803,1767874251493,-1000.0,0.000144,2]
[400965805,1767874251503,-1000.0,0.00014425,2]
[400965807,1767874251512,-1163.0,0.00014451,2]
[400965809,1767874251521,-740.38982778,0.00014452,2]
[400965811,1767874251531,-564.28,0.00014454,2]
[400965813,1767874251541,-41810.92698667,0.00014467,2]
[400965815,1767874251551,-151.0,0.00014477,2]
[400965817,1767874251561,-37192.72276352,0.0001448,2]
[400965819,1767874251571,-1163.0,0.00014512,2]
[400965821,1767874251581,-359.76179104,0.00014514,2]
[400965823,1767874251590,-1000.0,0.00014523,2]
[400965825,1767874251599,-1163.0,0.00014537,2]
[400965827,1767874251608,-4401.0,0.00014569,2]
[400965829,1767874251617,-1163.0,0.00014573,2]
[400965831,1767874251626,-1000.0,0.00014583,2]
[400965833,1767874251636,-556.08,0.00014587,2]
[400965835,1767874251645,-556.08,0.00014587,2]
[400965837,1767874251655,-556.24,0.00014587,2]
[400965839,1767874251665,-556.08,0.00014587,2]
[400965841,1767874251674,-547.55,0.00014587,2]
[400965843,1767874251684,-816.3,0.00014601,2]
[400965845,1767874251693,-500.0,0.00014601,2]
[400965848,1767874251703,-1040.17950622,0.00014602,2]
[400965850,1767874251713,-1196.17354128,0.00014602,2]
[400965852,1767874251723,-1163.0,0.00014672,2]
[400965854,1767874251733,-1000.0,0.000147,2]
[400965856,1767874251742,-1100.0,0.00014709,2]
[400965858,1767874251751,-691.39774486,0.00014723,2]
[400965860,1767874251760,-4401.0,0.00014737,2]
[400965862,1767874251769,-500.0,0.00014763,2]
[400965864,1767874251779,-500.0,0.00014763,2]
[400965866,1767874251788,-500.0,0.00014763,2]
[400965868,1767874251800,-500.0,0.00014763,2]
[400965870,1767874251811,-500.0,0.00014763,2]
[400965872,1767874251820,-500.0,0.00014763,2]
[400965874,1767874251830,-500.0,0.00014763,2]
[400965876,1767874251839,-453.03832283,0.00014763,2]
[400965878,1767874251849,-500.0,0.00014763,2]
[400965880,1767874251859,-500.0,0.00014763,2]
[400965882,1767874251868,-165.70843486,0.00014763,2]
[400965884,1767874251878,-500.0,0.00014763,2]
[400965886,1767874251887,-252.35,0.00014795,2]
[400965888,1767874251897,-4401.0,0.00014875,2]
[400965890,1767874251906,-247.17817809,0.000149,2]
[400965892,1767874251915,-252.35,0.00014915,2]
[400965894,1767874251925,-4401.0,0.00014938,2]
[400965896,1767874251935,-172.15,0.00014958,2]
[400965898,1767874251944,-1252.0,0.00014983,2]
[400965900,1767874251954,-816.3,0.00014999,2]
[400965902,1767874251963,-500.0,0.00014999,2]
[400965904,1767874251973,-191.0,0.00015,2]
[400965906,1767874251981,-2334.29367901,0.00015,2]
[400965908,1767874251991,-22966.4777501,0.00015,2]
[400965910,1767874252000,-20297.29964287,0.00015,2]
[400965912,1767874252010,-200.0,0.00015,2]
[400965914,1767874252021,-1000.0,0.00015,2]
[400965916,1767874252030,-767.7842514,0.00015,2]
[400965918,1767874252039,-252.35,0.00015034,2]
[400965920,1767874252049,-187.7,0.00015037,2]
[400965923,1767874252067,-654.79,0.00015068,2]
[400965925,1767874252079,-567.47,0.00015068,2]
[400965927,1767874252089,-197.223878,0.00015068,2]
[400965929,1767874252099,-197.223878,0.00015068,2]
[400965931,1767874252108,-197.223878,0.00015068,2]
[400965934,1767874252119,-197.223878,0.00015068,2]
[400965936,1767874252128,-197.223878,0.00015068,2]
[400965938,1767874252139,-197.223878,0.00015068,2]
[400965940,1767874252151,-197.223878,0.00015068,2]
[400965942,1767874252161,-151.0,0.00015068,3]
[400965944,1767874252171,-1152.0,0.00015079,2]
[400965946,1767874252181,-1000.0,0.0001508,2]
[400965948,1767874252192,-4609.0,0.00015098,2]
[400965951,1767874252202,-1000.0,0.00015101,2]
[400965953,1767874252212,-200.0,0.0001515,2]
[400965955,1767874252222,-4401.0,0.00015155,2]
[400965957,1767874252232,-187.7,0.00015174,2]
[400965959,1767874252241,-504.0,0.00015205,2]
[400965961,1767874252251,-4401.0,0.00015223,2]
[400965963,1767874252261,-151.0,0.00015224,2]
[400965965,1767874252271,-2276.96201759,0.00015227,2]
[400965967,1767874252280,-31124.03182365,0.00015227,2]
[400965970,1767874252290,-25696.0985385,0.00015227,2]
[400965972,1767874252300,-1421.0,0.00015261,2]
[400965974,1767874252310,-1000.0,0.000153,2]
[400965976,1767874252320,-200.0,0.00015301,2]
[400965978,1767874252330,-500.0,0.00015304,2]
[400965980,1767874252339,-500.0,0.00015304,2]
[400965982,1767874252349,-500.0,0.00015304,2]
[400965984,1767874252358,-504.82287623,0.0001531,2]
[400965986,1767874252368,-1000.0,0.0001531,2]
[400965988,1767874252378,-1000.0,0.0001531,2]
[400965990,1767874252387,-165.71915277,0.0001531,2]
[400965992,1767874252397,-1000.0,0.0001531,2]
[400965994,1767874252407,-1000.0,0.0001531,2]
[400965997,1767874252416,-1000.0,0.0001531,2]
[400965999,1767874252430,-1000.0,0.0001531,2]
[400966001,1767874252440,-1000.0,0.0001531,2]
[400966003,1767874252450,-1000.0,0.0001531,2]
[400966005,1767874252460,-41810.92698667,0.00015318,2]
[400966007,1767874252470,-37192.72276352,0.00015327,2]
[400966010,1767874252481,-152.0,0.00015342,2]
[400966012,1767874252490,-634.76848219,0.00015371,2]
[400966014,1767874252502,-20452.74518303,0.00015414,2]
[400966016,1767874252512,-1100.0,0.00015445,2]
[400966018,1767874252523,-1000.0,0.00015445,2]
[400966020,1767874252534,-200.0,0.00015455,2]
[400966022,1767874252545,-957.0,0.00015469,2]
[400966025,1767874252555,-1000.0,0.0001549,2]
[400966027,1767874252565,-324.9765641,0.0001549,2]
[400966029,1767874252575,-1000.0,0.0001549,2]
[400966031,1767874252586,-957.0,0.00015529,2]
[400966032,1767874252596,-957.0,0.00015533,2]
[400966033,1767874252607,-796.19226871,0.00015548,2]
[400966034,1767874252621,-957.0,0.0001555,2]
[400966035,1767874252631,-1000.0,0.00015562,2]
[400966036,1767874252641,-1284.259,0.00015588,2]
[400966037,1767874252651,-1207.372,0.00015594,2]
[400966038,1767874252661,-923.791,0.00015594,2]
[400966039,1767874252671,-565.0,0.00015594,2]
[400966040,1767874252682,-4819.0,0.00015594,2]
[400966041,1767874252692,-170.518,0.00015594,2]
[400966043,1767874252703,-2453.482,0.00015594,2]
[400966045,1767874252712,-6552.0,0.00015594,2]
[400966047,1767874252722,-1421.0,0.00015606,2]
[400966049,1767874252733,-200.0,0.00015609,2]
[400966051,1767874252744,-957.0,0.00015669,2]
[400966053,1767874252754,-1000.0,0.000157,2]
[400966055,1767874252764,-957.0,0.000157,2]
[400966057,1767874252774,-567.47,0.00015753,2]
[400966060,1767874252784,-1500.0,0.00015858,2]
[400966062,1767874252796,-1500.0,0.00015858,2]
[400966064,1767874252806,-1500.0,0.00015858,2]
[400966066,1767874252820,-1500.0,0.00015858,2]
[400966069,1767874252830,-1500.0,0.00015858,2]
[400966071,1767874252841,-1500.0,0.00015858,2]
[400966073,1767874252850,-1500.0,0.00015858,2]
[400966075,1767874252860,-1500.0,0.00015858,2]
[400966077,1767874252871,-957.0,0.00015878,2]
[400966079,1767874252881,-373.07297731,0.00015883,2]
[400966081,1767874252890,-1000.0,0.00015918,2]
[400966083,1767874252900,-957.0,0.00015959,2]
[400966085,1767874252911,-957.0,0.00015983,2]
[400966087,1767874252921,-250.031061,0.00016,2]
[400966089,1767874252931,-957.0,0.00016004,2]
[400966092,1767874252941,-716.97946142,0.00016092,2]
[400966094,1767874252951,-174.38,0.00016093,2]
[400966096,1767874252961,-150.0,0.00016093,2]
[400966098,1767874252971,-825.65138265,0.00016096,2]
[400966100,1767874252981,-151.0,0.00016097,2]
[400966102,1767874252991,-151.0,0.00016097,2]
[400966105,1767874253006,-275.14549956,0.00016097,2]
[400966107,1767874253016,-816.3,0.00016099,2]
[400966109,1767874253026,-500.0,0.00016099,2]
[400966111,1767874253036,-295817.45791611,0.000161,2]
[400966113,1767874253047,-157.72323008,0.00016105,2]
[400966115,1767874253057,-9999.99,0.00016116,2]
[400966117,1767874253067,-180.0,0.00016128,2]
[400966119,1767874253077,-500.0,0.00016146,2]
[400966122,1767874253087,-41810.92698667,0.00016168,2]
[400966124,1767874253096,-37192.72276352,0.00016175,2]
[400966126,1767874253107,-1000.0,0.000162,2]
[400966128,1767874253116,-1100.0,0.00016217,2]
[400966130,1767874253126,-816.3,0.00016238,2]
[400966132,1767874253137,-505.19571057,0.00016338,2]
[400966134,1767874253151,-200.0,0.0001634,2]
[400966137,1767874253161,-250.0,0.00016352,2]
[400966139,1767874253171,-212.0,0.00016352,2]
[400966141,1767874253184,-200.0,0.00016352,2]
[400966143,1767874253193,-200.0,0.00016352,2]
[400966145,1767874253206,-265.0,0.00016352,2]
[400966147,1767874253216,-215.166,0.00016352,2]
[400966150,1767874253227,-250.0,0.00016352,2]
[400966152,1767874253237,-210.242,0.00016352,2]
[400966154,1767874253247,-226.419,0.00016352,2]
[400966156,1767874253257,-250.0,0.00016352,2]
[400966158,1767874253266,-157.369,0.00016352,2]
[400966160,1767874253275,-243.342,0.00016352,2]
[400966162,1767874253285,-190.919,0.00016352,2]
[400966164,1767874253295,-163.809,0.00016352,2]
[400966166,1767874253305,-211.956,0.00016352,2]
[400966168,1767874253316,-250.0,0.00016352,2]
[400966171,1767874253327,-168.0,0.00016352,2]
[400966173,1767874253336,-228.51,0.00016352,2]
[400966175,1767874253346,-1405.0,0.00016352,2]
[400966177,1767874253356,-623.756,0.00016352,2]
[400966179,1767874253366,-1340.481,0.00016352,2]
[400966181,1767874253376,-648.98,0.00016352,2]
[400966183,1767874253386,-162.0,0.000164,2]
[400966186,1767874253398,-162.0,0.000164,2]
[400966188,1767874253408,-833.0,0.000164,2]
[400966190,1767874253418,-162.0,0.000164,2]
[400966192,1767874253429,-162.0,0.000164,2]
[400966194,1767874253439,-162.0,0.000164,2]
[400966196,1767874253448,-833.0,0.000164,2]
[400966218,1767874253635,-162.0,0.000164,2]
[400966219,1767874253645,-833.0,0.000164,2]
[400966222,1767874253654,-833.0,0.000164,2]
[400966223,1767874253663,-162.0,0.000164,2]
[400966225,1767874253673,-833.0,0.000164,2]
[400966227,1767874253682,-182.0,0.000164,2]
[400966230,1767874253692,-833.0,0.000164,2]
[400966231,1767874253701,-833.0,0.000164,2]
[400966233,1767874253710,-1856.56087805,0.00016406,2]
[400966235,1767874253720,-2000.0,0.00016406,2]
[400966238,1767874253731,-1005.81602002,0.00016406,2]
[400966239,1767874253740,-2000.0,0.00016406,2]
[400966242,1767874253750,-2000.0,0.00016406,2]
[400966243,1767874253760,-2000.0,0.00016406,2]
[400966246,1767874253769,-2000.0,0.00016406,2]
[400966248,1767874253779,-2000.0,0.00016406,2]
[400966250,1767874253788,-816.3,0.00016437,2]
[400966251,1767874253801,-500.0,0.00016437,2]
[400966254,1767874253811,-759.43,0.00016438,2]
[400966256,1767874253821,-159.52,0.00016438,2]
[400966258,1767874253830,-500.0,0.00016438,2]
[400966260,1767874253840,-500.0,0.00016438,2]
[400966262,1767874253850,-500.0,0.00016438,2]
[400966264,1767874253860,-500.0,0.00016438,2]
[400966265,1767874253869,-500.0,0.00016438,2]
[400966267,1767874253878,-500.0,0.00016438,2]
[400966269,1767874253888,-500.0,0.00016438,2]
[400966272,1767874253897,-500.0,0.00016438,2]
[400966274,1767874253906,-500.0,0.00016438,2]
[400966276,1767874253915,-500.0,0.00016438,2]
[400966278,1767874253926,-500.0,0.00016438,2]
[400966279,1767874253936,-500.0,0.00016438,2]
[400966281,1767874253945,-500.0,0.00016438,2]
[400966283,1767874253954,-500.0,0.00016438,2]
[400966285,1767874253963,-500.0,0.00016438,2]
[400966287,1767874253972,-500.0,0.00016438,2]
[400966289,1767874253982,-500.0,0.00016438,2]
[400966291,1767874253992,-500.0,0.00016438,2]
[400966293,1767874254002,-500.0,0.00016438,2]
[400966295,1767874254011,-500.0,0.00016438,2]
[400966297,1767874254020,-500.0,0.00016438,2]
[400966299,1767874254029,-500.0,0.00016438,2]
[400966301,1767874254038,-500.0,0.00016438,2]
[400966303,1767874254050,-500.0,0.00016438,2]
[400966306,1767874254059,-500.0,0.00016438,2]
[400966307,1767874254069,-500.0,0.00016438,2]
[400966310,1767874254079,-641.51732191,0.00016438,2]
[400966311,1767874254088,-500.0,0.00016438,2]
[400966313,1767874254098,-500.0,0.00016438,2]
[400966315,1767874254107,-500.0,0.00016438,2]
[400966317,1767874254116,-500.0,0.00016438,2]
[400966319,1767874254126,-500.0,0.00016438,2]
[400966321,1767874254135,-500.0,0.00016438,2]
[400966323,1767874254146,-500.0,0.00016438,2]
[400966325,1767874254155,-500.0,0.00016438,2]
[400966327,1767874254165,-3349.99481599,0.00016438,2]
[400966330,1767874254174,-3349.99481599,0.00016438,2]
[400966332,1767874254185,-3349.99481599,0.00016438,2]
[400966333,1767874254194,-3349.99481599,0.00016438,2]
[400966335,1767874254203,-3349.99481599,0.00016438,2]
[400966337,1767874254213,-3349.99481599,0.00016438,2]
[400966339,1767874254223,-3349.99481599,0.00016438,2]
[400966341,1767874254232,-3349.99481599,0.00016438,2]
[400966343,1767874254242,-3349.99481599,0.00016438,2]
[400966345,1767874254251,-3349.99481599,0.00016438,2]
[400966347,1767874254260,-3349.99481599,0.00016438,2]
[400966349,1767874254269,-3349.99481599,0.00016438,2]
[400966351,1767874254278,-3349.99481599,0.00016438,2]
[400966353,1767874254288,-3349.99481599,0.00016438,2]
[400966355,1767874254298,-3349.99481599,0.00016438,2]
[400966357,1767874254307,-3349.99481599,0.00016438,2]
[400966359,1767874254316,-3349.99481599,0.00016438,2]
[400966361,1767874254324,-3349.99481599,0.00016438,2]
[400966363,1767874254333,-3349.99481599,0.00016438,2]
[400966365,1767874254342,-3349.99481599,0.00016438,2]
[400966367,1767874254352,-3349.99481599,0.00016438,2]
[400966369,1767874254361,-3349.99481599,0.00016438,2]
[400966371,1767874254370,-3349.99481599,0.00016438,2]
[400966373,1767874254380,-3349.99481599,0.00016438,2]
[400966375,1767874254389,-3349.99481599,0.00016438,2]
[400966377,1767874254399,-3349.99481599,0.00016438,2]
[400966379,1767874254408,-3349.99481599,0.00016438,2]
[400966381,1767874254417,-3349.99481599,0.00016438,2]
[400966383,1767874254427,-3349.99481599,0.00016438,2]
[400966385,1767874254436,-3349.99481599,0.00016438,2]
[400966387,1767874254445,-3349.99481599,0.00016438,2]
[400966389,1767874254454,-3349.99481599,0.00016438,2]
[400966391,1767874254463,-3349.99481599,0.00016438,2]
[400966393,1767874254472,-3349.99481599,0.00016438,2]
[400966395,1767874254481,-3349.99481599,0.00016438,2]
[400966397,1767874254490,-3349.99481599,0.00016438,2]
[400966399,1767874254499,-3349.99481599,0.00016438,2]
[400966401,1767874254509,-3349.99481599,0.00016438,2]
[400966403,1767874254518,-3349.99481599,0.00016438,2]
[400966405,1767874254527,-3349.99481599,0.00016438,2]
[400966407,1767874254536,-3349.99481599,0.00016438,2]
[400966409,1767874254545,-3230.352144,0.00016438,2]
[400966412,1767874254556,-3230.352144,0.00016438,2]
[400966414,1767874254565,-3230.352144,0.00016438,2]
[400966416,1767874254575,-3230.352144,0.00016438,2]
[400966417,1767874254584,-3230.352144,0.00016438,2]
[400966420,1767874254593,-3230.352144,0.00016438,2]
[400966422,1767874254602,-3230.352144,0.00016438,2]
[400966424,1767874254611,-3230.352144,0.00016438,2]
[400966425,1767874254621,-3230.352144,0.00016438,2]
[400966428,1767874254632,-3230.352144,0.00016438,2]
[400966430,1767874254641,-3230.352144,0.00016438,2]
[400966432,1767874254650,-3230.352144,0.00016438,2]
[400966434,1767874254659,-3230.352144,0.00016438,2]
[400966436,1767874254669,-3230.352144,0.00016438,2]
[400966438,1767874254678,-654.79,0.00016438,2]
[400966440,1767874254687,-22337.29,0.00016438,2]
[400966442,1767874254696,-567.47,0.00016438,2]
[400966444,1767874254705,-300.0,0.00016438,3]
[400966446,1767874254714,-300.0,0.00016438,3]
[400966448,1767874254723,-300.0,0.00016438,3]
[400966450,1767874254732,-343.604595,0.00016438,3]
[400966452,1767874254740,-800.0,0.00016438,2]
[400966454,1767874254750,-2129.0,0.00016458,2]
[400966456,1767874254759,-500.0,0.00016493,2]
[400966458,1767874254769,-1000.0,0.000165,2]
[400966460,1767874254778,-1000.0,0.00016515,2]
[400966462,1767874254787,-152.0,0.00016536,3]
[400966464,1767874254797,-500.0,0.00016548,2]
[400966466,1767874254806,-1613.0,0.00016581,2]
[400966468,1767874254815,-195.08159117,0.00016602,2]
[400966470,1767874254825,-6453.0,0.00016607,2]
[400966472,1767874254835,-634.76848219,0.00016636,2]
[400966474,1767874254843,-157.72323008,0.00016642,2]
[400966476,1767874254852,-152.0,0.00016699,4]
[400966478,1767874254861,-597.36,0.00016712,2]
[400966480,1767874254870,-165.16,0.00016712,2]
[400966482,1767874254879,-833.0,0.0001672,2]
[400966484,1767874254888,-162.0,0.0001672,2]
[400966486,1767874254896,-162.0,0.0001672,2]
[400966488,1767874254905,-833.0,0.0001672,2]
[400966490,1767874254914,-162.0,0.0001672,2]
[400966492,1767874254923,-162.0,0.0001672,2]
[400966494,1767874254932,-833.0,0.0001672,2]
[400966495,1767874254940,-833.0,0.0001672,2]
[400966498,1767874254949,-162.0,0.0001672,2]
[400966500,1767874254958,-162.0,0.0001672,2]
[400966502,1767874254967,-162.0,0.0001672,2]
[400966503,1767874254976,-162.0,0.0001672,2]
[400966505,1767874254986,-833.0,0.0001672,2]
[400966507,1767874254995,-833.0,0.0001672,2]
[400966509,1767874255004,-1000.0,0.00016771,2]
[400966511,1767874255013,-1000.0,0.000168,2]
[400966514,1767874255023,-152.0,0.00016863,5]
[400966516,1767874255032,-661.47,0.00016889,2]
[400966518,1767874255042,-150.0,0.00016915,2]
[400966520,1767874255053,-150.0,0.00016915,2]
[400966522,1767874255062,-150.0,0.00016915,2]
[400966524,1767874255071,-300.7,0.00016915,2]
[400966526,1767874255081,-2500.0,0.00016954,2]
[400966528,1767874255091,-987.99755872,0.00016954,2]
[400966529,1767874255100,-2500.0,0.00016954,2]
[400966530,1767874255109,-976.3156368,0.00016954,2]
[400966531,1767874255118,-2500.0,0.00016954,2]
[400966532,1767874255127,-821.61952287,0.00016954,2]
[400966533,1767874255140,-199.99514505,0.00016976,2]
[400966534,1767874255153,-50623.16,0.00016986,2]
[400966535,1767874255163,-3556.50582973,0.00017,2]
[400966536,1767874255173,-250.0,0.00017,2]
[400966537,1767874255184,-41810.92698667,0.00017019,2]
[400966538,1767874255193,-37192.72276352,0.00017022,2]
[400966540,1767874255203,-152.0,0.00017027,6]